{"text_format":"1","workbook":"xlsx","n_sheets":5,"sheets":["SURVEY INPUT FORM","REQUEST","SURVEY OFFICE CHECK LIST","ADDRESS","Sheet1"],"not_rendered":{"charts":0,"images":90,"macros":0,"external_links":0,"defined_names":4,"comments":1,"pivot_tables":0},"unopened":[],"bounds":{"document_bytes":16777216,"sheet_cells":100000,"rows_first":2000,"rows_last":500,"rows_between":2000,"halvings":0,"cell_chars":16384,"cell_head_chars":4096},"cells_cut":0,"cells_raw":0,"read":"whole","date_system":"1900"}

{"sheet":"SURVEY INPUT FORM","index":0,"n_rows":107,"n_cols":16,"rows_kept":107,"cut":false,"hidden":true,"merged":[[19,3,19,9],[18,3,18,9],[15,3,15,9],[14,3,14,9],[16,3,16,9],[17,3,17,9],[0,1,0,8],[1,1,1,8],[13,3,13,9],[7,1,7,2],[2,1,2,8],[4,1,4,3],[10,3,10,9],[9,1,9,9],[12,3,12,9],[11,3,11,9],[28,2,28,9],[26,3,26,9],[20,3,20,9],[21,3,21,9],[22,3,22,9],[24,3,24,9],[25,3,25,9],[27,3,27,9],[23,3,23,9]]}
[null,"TENNESSEE DEPARTMENT OF TRANSPORTATION",null,null,null,null,null,null,null,null,null,null,null,null,null,"??"]
[null,"ADDITIONAL SURVEY INFORMATION ",null,null,null,null,null,null,null,null,null,null,null,null,null,1]
[null,"SUMMARY OF REQUEST TYPE",null,null,null,null,null,null,null,null,null,null,null,null,null,2]
[null,null,null,null,null,null,null,null,null,null,null,null,null,null,null,3]
["DATE:",{"$f":"REQUEST!B13","v":"00:00:00"},null,null,"        ORIGINALLY SURVEYED BY:",null,null,null,"??",null,null,null,null,null,null,4]
["REGION:","??",null,null,"  ADDITIONAL INFORMATION BY:",null,null,null,"??",null,null,null,null,null,null,"??"]
["COUNTY:","??",null,null,null,null,null,null,null,null,null,null,null,null,null,"TDOT R-1"]
["PIN:",{"$f":"REQUEST!B16","v":0},null,null,null,null,null,null,null,null,null,null,null,null,null,"TDOT R-2"]
[null,null,null,null,null,null,null,null,null,null,null,null,null,null,null,"TDOT R-3"]
[null,null,null,null,null,null,null,null,null,null,null,null,null,null,null,"TDOT R-4"]
[null,null,null,null,null,null,null,null,null,null,null,null,null,null,null,"CONSULTANT"]
[null,null,null,null,null,null,null,null,null,null,null,null,null,null,null,"??"]
[null,null,null,null,null,null,null,null,null,null,null,null,null,null,null,"ANDERSON"]
[null,null,null,null,null,null,null,null,null,null,null,null,null,null,null,"BEDFORD"]
[null,null,null,null,null,null,null,null,null,null,null,null,null,null,null,"BENTON"]
[null,null,null,null,null,null,null,null,null,null,null,null,null,null,null,"BLEDSOE"]
[null,null,null,null,null,null,null,null,null,null,null,null,null,null,null,"BLOUNT"]
[null,null,null,null,null,null,null,null,null,null,null,null,null,null,null,"BRADLEY"]
[null,null,null,null,null,null,null,null,null,null,null,null,null,null,null,"CAMPBELL"]
[null,null,null,null,null,null,null,null,null,null,null,null,null,null,null,"CANNON"]
[null,null,null,null,null,null,null,null,null,null,null,null,null,null,null,"CARROLL"]
[null,null,null,null,null,null,null,null,null,null,null,null,null,null,null,"CARTER"]
[null,null,null,null,null,null,null,null,null,null,null,null,null,null,null,"CHEATHAM"]
[null,null,null,null,null,null,null,null,null,null,null,null,null,null,null,"CHESTER"]
[null,null,null,null,null,null,null,null,null,null,null,null,null,null,null,"CLAIBORNE"]
[null,null,null,null,null,null,null,null,null,null,null,null,null,null,null,"CLAY"]
[null,null,null,null,null,null,null,null,null,null,null,null,null,null,null,"COCKE"]
[null,null,null,null,null,null,null,null,null,null,null,null,null,null,null,"COFFEE"]
[null,null,null,null,null,null,null,null,null,null,null,null,null,null,null,"CROCKETT"]
["E-Mail Copy (letter only):   HeadQuarters.Survey@tn.gov",null,null,null,null,null,null,null,null,null,null,null,null,null,null,"CUMBERLAND"]
[null,null,null,null,null,null,null,null,null,null,null,null,null,null,null,"DAVIDSON"]
[null,null,null,null,null,null,null,null,null,null,null,null,null,null,null,"DECATUR"]
[null,null,null,null,null,null,null,null,null,null,null,null,null,null,null,"DEKALB"]
[null,null,null,null,null,null,null,null,null,null,null,null,null,null,null,"DICKSON"]
[null,null,null,null,null,null,null,null,null,null,null,null,null,null,null,"DYER"]
[null,null,null,null,null,null,null,null,null,null,null,null,null,null,null,"FAYETTE"]
[null,null,null,null,null,null,null,null,null,null,null,null,null,null,null,"FENTRESS"]
[null,null,null,null,null,null,null,null,null,null,null,null,null,null,null,"FRANKLIN"]
[null,null,null,null,null,null,null,null,null,null,null,null,null,null,null,"GIBSON"]
[null,null,null,null,null,null,null,null,null,null,null,null,null,null,null,"GILES"]
[null,null,null,null,null,null,null,null,null,null,null,null,null,null,null,"GRAINGER"]
[null,null,null,null,null,null,null,null,null,null,null,null,null,null,null,"GREENE"]
[null,null,null,null,null,null,null,null,null,null,null,null,null,null,null,"GRUNDY"]
[null,null,null,null,null,null,null,null,null,null,null,null,null,null,null,"HAMBLEN"]
[null,null,null,null,null,null,null,null,null,null,null,null,null,null,null,"HAMILTON"]
[null,null,null,null,null,null,null,null,null,null,null,null,null,null,null,"HANCOCKE"]
[null,null,null,null,null,null,null,null,null,null,null,null,null,null,null,"HARDEMAN"]
[null,null,null,null,null,null,null,null,null,null,null,null,null,null,null,"HARDIN"]
[null,null,null,null,null,null,null,null,null,null,null,null,null,null,null,"HAWKINS"]
[null,null,null,null,null,null,null,null,null,null,null,null,null,null,null,"HAYWOOD"]
[null,null,null,null,null,null,null,null,null,null,null,null,null,null,null,"HENDERSON"]
[null,null,null,null,null,null,null,null,null,null,null,null,null,null,null,"HENRY"]
[null,null,null,null,null,null,null,null,null,null,null,null,null,null,null,"HICKMAN"]
[null,null,null,null,null,null,null,null,null,null,null,null,null,null,null,"HOUSTON"]
[null,null,null,null,null,null,null,null,null,null,null,null,null,null,null,"HUMPHREYS"]
[null,null,null,null,null,null,null,null,null,null,null,null,null,null,null,"JACKSON"]
[null,null,null,null,null,null,null,null,null,null,null,null,null,null,null,"JEFFERSON"]
[null,null,null,null,null,null,null,null,null,null,null,null,null,null,null,"JOHNSON"]
[null,null,null,null,null,null,null,null,null,null,null,null,null,null,null,"KNOX"]
[null,null,null,null,null,null,null,null,null,null,null,null,null,null,null,"LAKE"]
[null,null,null,null,null,null,null,null,null,null,null,null,null,null,null,"LAUDERDALE"]
[null,null,null,null,null,null,null,null,null,null,null,null,null,null,null,"LAWRENCE"]
[null,null,null,null,null,null,null,null,null,null,null,null,null,null,null,"LEWIS"]
[null,null,null,null,null,null,null,null,null,null,null,null,null,null,null,"LINCOLN"]
[null,null,null,null,null,null,null,null,null,null,null,null,null,null,null,"LOUDON"]
[null,null,null,null,null,null,null,null,null,null,null,null,null,null,null,"McMINN"]
[null,null,null,null,null,null,null,null,null,null,null,null,null,null,null,"McNAIRY"]
[null,null,null,null,null,null,null,null,null,null,null,null,null,null,null,"MACON"]
[null,null,null,null,null,null,null,null,null,null,null,null,null,null,null,"MADISON"]
[null,null,null,null,null,null,null,null,null,null,null,null,null,null,null,"MARION"]
[null,null,null,null,null,null,null,null,null,null,null,null,null,null,null,"MARSHALL"]
[null,null,null,null,null,null,null,null,null,null,null,null,null,null,null,"MAURY"]
[null,null,null,null,null,null,null,null,null,null,null,null,null,null,null,"MEIGS"]
[null,null,null,null,null,null,null,null,null,null,null,null,null,null,null,"MONROE"]
[null,null,null,null,null,null,null,null,null,null,null,null,null,null,null,"MONTGOMERY"]
[null,null,null,null,null,null,null,null,null,null,null,null,null,null,null,"MOORE"]
[null,null,null,null,null,null,null,null,null,null,null,null,null,null,null,"MORGAN"]
[null,null,null,null,null,null,null,null,null,null,null,null,null,null,null,"OBION"]
[null,null,null,null,null,null,null,null,null,null,null,null,null,null,null,"OVERTON"]
[null,null,null,null,null,null,null,null,null,null,null,null,null,null,null,"PERRY"]
[null,null,null,null,null,null,null,null,null,null,null,null,null,null,null,"PICKETT"]
[null,null,null,null,null,null,null,null,null,null,null,null,null,null,null,"POLK"]
[null,null,null,null,null,null,null,null,null,null,null,null,null,null,null,"PUTNAM"]
[null,null,null,null,null,null,null,null,null,null,null,null,null,null,null,"RHEA"]
[null,null,null,null,null,null,null,null,null,null,null,null,null,null,null,"ROANE"]
[null,null,null,null,null,null,null,null,null,null,null,null,null,null,null,"ROBERTSON"]
[null,null,null,null,null,null,null,null,null,null,null,null,null,null,null,"RUTHERFORD"]
[null,null,null,null,null,null,null,null,null,null,null,null,null,null,null,"SCOTT"]
[null,null,null,null,null,null,null,null,null,null,null,null,null,null,null,"SEQUATCHIE"]
[null,null,null,null,null,null,null,null,null,null,null,null,null,null,null,"SEVIER"]
[null,null,null,null,null,null,null,null,null,null,null,null,null,null,null,"SHELBY"]
[null,null,null,null,null,null,null,null,null,null,null,null,null,null,null,"SMITH"]
[null,null,null,null,null,null,null,null,null,null,null,null,null,null,null,"STEWART"]
[null,null,null,null,null,null,null,null,null,null,null,null,null,null,null,"SULLIVAN"]
[null,null,null,null,null,null,null,null,null,null,null,null,null,null,null,"SUMNER"]
[null,null,null,null,null,null,null,null,null,null,null,null,null,null,null,"TIPTON"]
[null,null,null,null,null,null,null,null,null,null,null,null,null,null,null,"TROUSDALE"]
[null,null,null,null,null,null,null,null,null,null,null,null,null,null,null,"UNICOI"]
[null,null,null,null,null,null,null,null,null,null,null,null,null,null,null,"UNION"]
[null,null,null,null,null,null,null,null,null,null,null,null,null,null,null,"VAN BUREN"]
[null,null,null,null,null,null,null,null,null,null,null,null,null,null,null,"WARREN"]
[null,null,null,null,null,null,null,null,null,null,null,null,null,null,null,"WASHINGTON"]
[null,null,null,null,null,null,null,null,null,null,null,null,null,null,null,"WAYNE"]
[null,null,null,null,null,null,null,null,null,null,null,null,null,null,null,"WEAKLEY"]
[null,null,null,null,null,null,null,null,null,null,null,null,null,null,null,"WHITE"]
[null,null,null,null,null,null,null,null,null,null,null,null,null,null,null,"WILLIAMSON"]
[null,null,null,null,null,null,null,null,null,null,null,null,null,null,null,"WILSON"]

{"sheet":"REQUEST","index":1,"n_rows":44,"n_cols":13,"rows_kept":44,"cut":false,"hidden":false,"merged":[[24,3,24,9],[42,2,42,9],[39,3,39,9],[35,3,35,9],[31,3,31,9],[40,2,40,9],[38,3,38,9],[32,3,32,9],[33,3,33,9],[34,3,34,9],[41,2,41,9],[0,1,1,8],[36,3,36,9],[37,3,37,9],[25,3,25,9],[26,3,26,9],[27,3,27,9],[6,0,6,9],[7,0,7,8],[8,0,8,8],[2,1,2,8],[23,3,23,9],[18,1,18,9],[30,3,30,9],[28,3,28,9],[29,3,29,9],[20,1,20,9],[3,1,3,8],[4,1,4,8],[12,1,12,3],[15,1,15,2],[15,3,15,5],[15,6,15,9],[21,0,21,9],[10,0,10,9],[22,3,22,9],[14,1,14,9],[16,1,16,9],[17,1,17,9],[13,1,13,3],[19,1,19,9]]}
[null,"TENNESSEE DEPARTMENT OF TRANSPORTATION"]
[]
[null,{"$f":"CHOOSE(M11,ADDRESS!A74,ADDRESS!B22,ADDRESS!B23,ADDRESS!B24,ADDRESS!B25,ADDRESS!B26,ADDRESS!B27,ADDRESS!B28,ADDRESS!B29,ADDRESS!B30,ADDRESS!B31,ADDRESS!B32,ADDRESS!B33,ADDRESS!B34,ADDRESS!B35,ADDRESS!B36,ADDRESS!B37,ADDRESS!B38,ADDRESS!B39,ADDRESS!B40,ADDRESS!B41,ADDRESS!B42,ADDRESS!B43,ADDRESS!B44,ADDRESS!B45,ADDRESS!B46,ADDRESS!B47,ADDRESS!B48,ADDRESS!B49,ADDRESS!B50,ADDRESS!B51,ADDRESS!B52,ADDRESS!B53,ADDRESS!B54,ADDRESS!B55,ADDRESS!B56,ADDRESS!B57,ADDRESS!B58,ADDRESS!B59,ADDRESS!B60,ADDRESS!B61,ADDRESS!B62,ADDRESS!B63,ADDRESS!B64,ADDRESS!B65,ADDRESS!B66,ADDRESS!B67,ADDRESS!B68,ADDRESS!B69,ADDRESS!B70,ADDRESS!B71,ADDRESS!B72)","v":"FILL IN AUTOMATIC"}]
[null,{"$f":"CHOOSE(M11,ADDRESS!A74,ADDRESS!C22,ADDRESS!C23,ADDRESS!C24,ADDRESS!C25,ADDRESS!C26,ADDRESS!C27,ADDRESS!C28,ADDRESS!C29,ADDRESS!C30,ADDRESS!C31,ADDRESS!C32,ADDRESS!C33,ADDRESS!C34,ADDRESS!C35,ADDRESS!C36,ADDRESS!C37,ADDRESS!C38,ADDRESS!C39,ADDRESS!C40,ADDRESS!C41,ADDRESS!C42,ADDRESS!C43,ADDRESS!C44,ADDRESS!C45,ADDRESS!C46,ADDRESS!C47,ADDRESS!C48,ADDRESS!C49,ADDRESS!C50,ADDRESS!C51,ADDRESS!C52,ADDRESS!C53,ADDRESS!C54,ADDRESS!C55,ADDRESS!C56,ADDRESS!C57,ADDRESS!C58,ADDRESS!C59,ADDRESS!C60,ADDRESS!C61,ADDRESS!C62,ADDRESS!C63,ADDRESS!C64,ADDRESS!C65,ADDRESS!C66,ADDRESS!C67,ADDRESS!C68,ADDRESS!C69,ADDRESS!C70,ADDRESS!C71,ADDRESS!C72)","v":"FILL IN AUTOMATIC"}]
[null,{"$f":"CHOOSE(M11,ADDRESS!A74,ADDRESS!D22,ADDRESS!D23,ADDRESS!D24,ADDRESS!D25,ADDRESS!D26,ADDRESS!D27,ADDRESS!D28,ADDRESS!D29,ADDRESS!D30,ADDRESS!D31,ADDRESS!D32,ADDRESS!D33,ADDRESS!D34,ADDRESS!D35,ADDRESS!D36,ADDRESS!D37,ADDRESS!D38,ADDRESS!D39,ADDRESS!D40,ADDRESS!D41,ADDRESS!D42,ADDRESS!D43,ADDRESS!D44,ADDRESS!D45,ADDRESS!D46,ADDRESS!D47,ADDRESS!D48,ADDRESS!D49,ADDRESS!D50,ADDRESS!D51,ADDRESS!D52,ADDRESS!D53,ADDRESS!D54,ADDRESS!D55,ADDRESS!D56,ADDRESS!D57,ADDRESS!D58,ADDRESS!D59,ADDRESS!D60,ADDRESS!D61,ADDRESS!D62,ADDRESS!D63,ADDRESS!D64,ADDRESS!D65,ADDRESS!D66,ADDRESS!D67,ADDRESS!D68,ADDRESS!D69,ADDRESS!D70,ADDRESS!D71,ADDRESS!D72)","v":"FILL IN AUTOMATIC"}]
[]
[{"$f":"CHOOSE(M7,ADDRESS!A11,ADDRESS!A12,ADDRESS!A13,ADDRESS!A14,ADDRESS!A15)","v":"CHOOSE REGIONAL SURVEY OFFICE"},null,null,null,null,null,null,null,null,null,null,null,1]
[{"$f":"CHOOSE(M7,ADDRESS!B11,ADDRESS!B12,ADDRESS!B13,ADDRESS!B14,ADDRESS!B15)","v":"FROM RIGHT"}]
[{"$f":"CHOOSE(M7,ADDRESS!C11,ADDRESS!C12,ADDRESS!C13,ADDRESS!C14,ADDRESS!C15)","v":"====================>>>>"}]
[]
[{"$f":"CHOOSE(M11,ADDRESS!A21,ADDRESS!A22,ADDRESS!A23,ADDRESS!A24,ADDRESS!A25,ADDRESS!A26,ADDRESS!A27,ADDRESS!A28,ADDRESS!A29,ADDRESS!A30,ADDRESS!A31,ADDRESS!A32,ADDRESS!A33,ADDRESS!A34,ADDRESS!A35,ADDRESS!A36,ADDRESS!A37,ADDRESS!A38,ADDRESS!A39,ADDRESS!A40,ADDRESS!A41,ADDRESS!A42,ADDRESS!A43,ADDRESS!A44,ADDRESS!A45,ADDRESS!A46,ADDRESS!A47,ADDRESS!A48,ADDRESS!A49,ADDRESS!A50,ADDRESS!A51,ADDRESS!A52,ADDRESS!A53,ADDRESS!A54,ADDRESS!A55,ADDRESS!A56,ADDRESS!A57,ADDRESS!A58,ADDRESS!A59,ADDRESS!A60,ADDRESS!A61,ADDRESS!A62,ADDRESS!A63,ADDRESS!A64,ADDRESS!A65,ADDRESS!A66,ADDRESS!A67,ADDRESS!A68,ADDRESS!A69,ADDRESS!A70,ADDRESS!A71,ADDRESS!A72)","v":"INFORMATION REQUESTED BY:   CHOOSE FROM RIGHT  ====================>>>>   "},null,null,null,null,null,null,null,null,null,null,null,1]
[]
["Date:  "]
["Subject:","Additional Information"]
["County:"]
["PIN Number:",null,null,"FORM COMPLETED BY:",null,null,"your name here"]
["P.E. No.:  "]
["Route No.:  "]
["From:  "]
["To:  "]
[null,"PLEASE FURNISH ADDITIONAL INFORMATION AS REQUESTED."]
["USE MARKED PRINTS OR OTHER METHOD SHOWING AREA #’s, CHECK ITEM REQUIRED BELOW AND LIST AREA #’s FOR EACH, IN SPACE PROVIDED.  DESCRIBE ANY SPECIFICS IF REQUIRED."]
[]
[]
[null,null,null,"area #1, 3, 4 & 6 (THIS IS AN EXAMPLE REMOVE IF NOT REQUIRED)"]
[]
[]
[]
[]
[]
[]
[]
[]
[]
[]
[]
[]
[]
[]
[]
[]
[]
[]
["With Electronic files: "]

{"sheet":"SURVEY OFFICE CHECK LIST","index":2,"n_rows":49,"n_cols":7,"rows_kept":49,"cut":false,"hidden":true,"merged":[[25,2,25,8],[27,2,27,8],[29,2,29,8],[11,2,11,8],[48,2,48,8],[34,2,34,8],[36,2,36,8],[38,2,38,8],[43,2,43,8],[2,6,2,7],[16,2,16,8],[18,2,18,8],[20,2,20,8],[4,1,6,8],[2,3,2,4]]}
[null,null,"CHECK LIST FOR A NEW ALIGNMENT UPDATE"]
[]
[null,null,"COUNTY",{"$f":"'SURVEY INPUT FORM'!B7","v":"??"},null,"PIN",{"$f":"'SURVEY INPUT FORM'!B8","v":0}]
[]
[null,"Note:  It is not necessary to draw and label the new centerline or intersection station equations in the plan view.  Nor to redo any bridge information unless specifically requested by design to do so."]
[]
[]
[]
["YES","NA"]
[null,null,"Control Point Table"]
[]
[null,null,"____ Update for new stations and offsets."]
[]
[]
[null,null,"Station/Offset Flags"]
[]
[null,null,"____ Update the still-valid flags"]
[]
[null,null,"____ Delete flags that have become outside the limits of the new alignment"]
[]
[null,null,"____ Add flags that have become inside the limits of the new alignment."]
[]
[]
[null,null,"Where the new centerline crosses a Present ROW line or a property line"]
[]
[null,null,"____ Break the line/curve in two"]
[]
[null,null,"____ Label the metes and bounds of the two new lines/curves"]
[]
[null,null,"____ Label the centerline crossing station"]
[]
[]
[null,null,"Where the old centerline crossed a Present ROW line or a property line"]
[]
[null,null,"____ Join the two lines/curves into one"]
[]
[null,null,"____ Label the metes and bounds of the line/curve"]
[]
[null,null,"____ Delete the label of the crossing station."]
[]
[]
[null,null,"ROW Table"]
[]
[null,null,"____ Update areas left & right for all affected tracts."]
[]
[]
[null,null,"Profiles"]
[]
[null,null,"____ Update, or replot completely, including intersection station equations."]

{"sheet":"ADDRESS","index":3,"n_rows":76,"n_cols":4,"rows_kept":76,"cut":false,"hidden":true,"merged":[[10,2,10,3]]}
["CHOOSE DESIGN OFFICE","FROM RIGHT","====================>>>>"]
["Region 1 - Design Office","7366 Region Lane","Knoxville, TN 37914-9561"]
["Region 2 - Design Office","7512 Volkswagen Drive","Chattanooga, TN 37416-1758"]
["Region 3 - Design Office","6601 Centennial Blvd","Nashville, TN 37243-1016"]
["Region 4 - Design Office","300 Benchmark Place","Jackson, TN 38301-9712"]
[]
[]
[]
[]
[" "]
["CHOOSE REGIONAL SURVEY OFFICE","FROM RIGHT","====================>>>>"]
["To:   Region1.Survey@tn.gov","7366 Region Lane","Knoxville, TN 37914-9561"]
["To:   Region2.Survey@tn.gov","7512 Volkswagen Drive","Chattanooga, TN 37416-1758"]
["To:   Region3.Survey@tn.gov","6601 Centennial Blvd","Nashville, TN 37243-1016"]
["To:   Region4.Survey@tn.gov","300 Benchmark Place","Jackson, TN 38301-9712"]
[]
[]
[]
[]
[]
["INFORMATION REQUESTED BY:   CHOOSE FROM RIGHT  ====================>>>>   ","From RIGHT","====================>>>>"]
["From:  Mrs. Jennifer Lloyd, Director, HQ ","Suite 1200 J.K. Polk Bldg.","505 Deaderick Street","Nashville, TN 37243-1402"]
["From:  Mr. Robert Braun, C.E. Manager 1, HQ","Suite 1200 J.K. Polk Bldg.","505 Deaderick Street","Nashville, TN 37243-1402"]
["From:  Mr. Dexter Justis, Director of Project Delivery, Region 1",{"$f":"\"\"","v":""},"7366 Region Lane","Knoxville, TN 37914-9561"]
["From:  Ms. Christie Brown, C.E. Manager 2, Region 1",{"$f":"\"\"","v":""},"7366 Region Lane","Knoxville, TN 37914-9561"]
["From:  Mr. Eric Wilson, C.E. Manager 1, Region 1",{"$f":"\"\"","v":""},"7366 Region Lane","Knoxville, TN 37914-9561"]
["From:  Mr. Andrew Padgett, C.E. Manager 1, Region 1",{"$f":"\"\"","v":""},"7366 Region Lane","Knoxville, TN 37914-9561"]
["From:  Mr. Stacy Weaver, C.E. Manager 1, Region 1",{"$f":"\"\"","v":""},"7366 Region Lane","Knoxville, TN 37914-9561"]
["From:  Mr. Christopher Fox, C.E. Manager 1, Region 1",{"$f":"\"\"","v":""},"7366 Region Lane","Knoxville, TN 37914-9561"]
["From:  Mr. Wesley Hughen, Director of Project Delivery, Region 2",{"$f":"\"\"","v":""},"7512 Volkswagen Drive","Chattanooga, TN 37416-1758"]
["From:  Mr. Robert Rodgers, C.E. Manager 2, Region 2",{"$f":"\"\"","v":""},"7512 Volkswagen Drive","Chattanooga, TN 37416-1758"]
["From:  Mr. Jeremy Sims, C.E. Manager 2, Region 2",{"$f":"\"\"","v":""},"7512 Volkswagen Drive","Chattanooga, TN 37416-1758"]
["From:  Mr. Hatton Vanhook, C.E. Manager 1, Region 2",{"$f":"\"\"","v":""},"7512 Volkswagen Drive","Chattanooga, TN 37416-1758"]
["From:  Mr. David Yates, C.E. Manager 1, Region 2",{"$f":"\"\"","v":""},"7512 Volkswagen Drive","Chattanooga, TN 37416-1758"]
["From:  Mr. Greg Taylor, C.E. Manager 1, Region 2",{"$f":"\"\"","v":""},"7512 Volkswagen Drive","Chattanooga, TN 37416-1758"]
["From:  Mr. Gary Chapman, Trans. Proj. Sp. Sv. 2, Region 2",{"$f":"\"\"","v":""},"7512 Volkswagen Drive","Chattanooga, TN 37416-1758"]
["From:  Mr. Shane Hester, Director of Project Delivery, Region 3",{"$f":"\"\"","v":""},"6601 Centennial Blvd","Nashville, TN 37243-1016"]
["From:  Mr. Jon Zirkle, C.E. Manager 2, Region 3",{"$f":"\"\"","v":""},"6601 Centennial Blvd","Nashville, TN 37243-1016"]
["From:  Ms. Sharon Schutz, C.E. Manager 2, Region 3",{"$f":"\"\"","v":""},"6601 Centennial Blvd","Nashville, TN 37243-1016"]
["From:  Mr. Aso Hawrami, C.E. Manager 1, Region 3",{"$f":"\"\"","v":""},"6601 Centennial Blvd","Nashville, TN 37243-1016"]
["From:  Mr. Bradley Martin,  C.E. Manager 1, Region 3",{"$f":"\"\"","v":""},"6601 Centennial Blvd","Nashville, TN 37243-1016"]
["From:  Mr. Brad Abel,  C.E. Manager 1, Region 3",{"$f":"\"\"","v":""},"6601 Centennial Blvd","Nashville, TN 37243-1016"]
["From:  Ms. Melissa Portell,  C.E. Manager 1, Region 3",{"$f":"\"\"","v":""},"6601 Centennial Blvd","Nashville, TN 37243-1016"]
["From:  Mr. Nathan Gregory, Trans. Proj. Sp. Sv. 2, Region 3",{"$f":"\"\"","v":""},"6601 Centennial Blvd","Nashville, TN 37243-1016"]
["From:  Mr. Casey Pounders, Trans. Proj. Sp. Sv. 2, Region 3",{"$f":"\"\"","v":""},"6601 Centennial Blvd","Nashville, TN 37243-1016"]
["From:  Ms. Tabitha Caveness, Director of Project Delivery, Region 4",{"$f":"\"\"","v":""},"300 Benchmark Place","Jackson, TN 38301-9712"]
["From:  Mr. Gary Scruggs, C.E. Manager 2, Region 4",{"$f":"\"\"","v":""},"300 Benchmark Place","Jackson, TN 38301-9712"]
["From:  Mrs. Rachel Webb, C.E. Manager 2, Region 4",{"$f":"\"\"","v":""},"300 Benchmark Place","Jackson, TN 38301-9712"]
["From:  Mr. Glen Blankenship, C.E. Manager 1, Region 4",{"$f":"\"\"","v":""},"300 Benchmark Place","Jackson, TN 38301-9712"]
["From:  Mr. Seth Hendren, C.E. Manager 1, Region 4",{"$f":"\"\"","v":""},"300 Benchmark Place","Jackson, TN 38301-9712"]
["From:  Mr. Dennis Moultrie, C.E. Manager 1, Region 4",{"$f":"\"\"","v":""},"300 Benchmark Place","Jackson, TN 38301-9712"]
["From:  Mr. Ryan Philpott, Trans. Proj. Sp. Sv. 2, Region 4",{"$f":"\"\"","v":""},"300 Benchmark Place","Jackson, TN 38301-9712"]
["From:  Mrs. Stephanie Kissell, Trans. Proj. Sp. Sv. 2, Region 4",{"$f":"\"\"","v":""},"300 Benchmark Place","Jackson, TN 38301-9712"]
["From:  Mr. James Boyd, Trans. Proj. Sp. Sv. 2, Region 4",{"$f":"\"\"","v":""},"300 Benchmark Place","Jackson, TN 38301-9712"]
["From:  Mr. Freddy Miller, Assistant Director, HQ Consultants ","Suite 1200 J.K. Polk Bldg.","505 Deaderick Street","Nashville, TN 37243-1402"]
["From:  Mr. Ataur Rahman, Assistant Director, HQ ","Suite 1200 J.K. Polk Bldg.","505 Deaderick Street","Nashville, TN 37243-1402"]
["From:  Mr. James Kelley, C.E.Manager 2, HQ  ","Suite 1200 J.K. Polk Bldg.","505 Deaderick Street","Nashville, TN 37243-1402"]
["From:  Mr. Moosa Pourali, C.E. Manager 1, HQ Consultants ","Suite 1200 J.K. Polk Bldg.","505 Deaderick Street","Nashville, TN 37243-1402"]
["From:  Mr. Larry Jordan, Trans. Manager 1, HQ Consultants ","Suite 1200 J.K. Polk Bldg.","505 Deaderick Street","Nashville, TN 37243-1402"]
["From:  Mr. Jerry Hughes, Trans. Manager 1, HQ Consultants ","Suite 1200 J.K. Polk Bldg.","505 Deaderick Street","Nashville, TN 37243-1402"]
["From:  Mr. Jim Bivens, Trans. Proj. Sp. Sv. 2, HQ Consultants ","Suite 1200 J.K. Polk Bldg.","505 Deaderick Street","Nashville, TN 37243-1402"]
["From:  Mr. Sampson Udeh, Trans. Proj. Sp. Sr., HQ Pavement Design","Suite 1200 J.K. Polk Bldg.","505 Deaderick Street","Nashville, TN 37243-1402"]
["From:  Mr. Stanley Trice, Trans. Proj. Sv. 2, HQ Statewide Signals","Suite 1800 J.K. Polk Bldg.","505 Deaderick Street","Nashville, TN 37243-1402"]
["From:  Region 1 Right-Of-Way Office",{"$f":"\"\"","v":""},"7366 Region Lane","Knoxville, TN 37914-9561"]
["From:  Region 2 Right-Of-Way Office",{"$f":"\"\"","v":""},"7512 Volkswagen Drive","Chattanooga, TN 37416-1758"]
["From:  Region 3 Right-Of-Way Office",{"$f":"\"\"","v":""},"6601 Centennial Blvd","Nashville, TN 37243-1016"]
["From:  Region 4 Right-Of-Way Office",{"$f":"\"\"","v":""},"300 Benchmark Place","Jackson, TN 38301-9712"]
["From:  Ecology and Permits Office ","Suite 900 J.K. Polk Bldg.","505 Deaderick Street","Nashville, TN 37242-1402"]
["From:  Region 1 Environmental Tech Group",{"$f":"\"\"","v":""},"7366 Region Lane","Knoxville, TN 37914-9561"]
["From:  Region 2 Environmental Tech Group"," ","7512 Volkswagen Drive","Chattanooga, TN 37416-1758"]
["From:  Region 3 Environmental Tech Group"," ","6601 Centennial Blvd","Nashville, TN 37243-1016"]
["From:  Region 4 Environmental Tech Group"," ","300 Benchmark Place","Jackson, TN 38301-9712"]
[]
["FILL IN AUTOMATIC",null,null,{"$f":"\"\"","v":""}]
[]
["REVISED: 11/12/2018 - Personnel change and new address for region 2"]

{"sheet":"Sheet1","index":4,"n_rows":0,"n_cols":0,"rows_kept":0,"cut":false,"hidden":false,"merged":[]}